[Event "Early-Titled-Tuesday-Blitz-January-30-2024"]
[Site "Chess.com"]
[Date "2024.01.30"]
[Round "9"]
[White "BocharovD"]
[Black "Polish_fighter3000"]
[Result "1/2-1/2"]
[WhiteElo "2872"]
[BlackElo "3050"]
[TimeControl "180+1"]
[EndTime "9:51:18 PST"]
[Termination "Game drawn by repetition"]

1. c4 {[%clk 0:03:00.9]} 1... Nf6 {[%clk 0:03:00.9]} 2. g3 {[%clk 0:03:00.6]}
2... g6 {[%clk 0:03:01.7]} 3. Bg2 {[%clk 0:03:01.1]} 3... Bg7 {[%clk 0:03:01.3]}
4. Nc3 {[%clk 0:03:01.8]} 4... O-O {[%clk 0:03:01.5]} 5. d4 {[%clk 0:03:02.5]}
5... d6 {[%clk 0:02:59.3]} 6. Nf3 {[%clk 0:03:02.2]} 6... c6 {[%clk 0:02:59.8]}
7. e4 {[%clk 0:03:00.8]} 7... Qa5 {[%clk 0:02:33.3]} 8. O-O {[%clk 0:02:56.3]}
8... Qh5 {[%clk 0:02:33.3]} 9. e5 {[%clk 0:02:54.7]} 9... dxe5 {[%clk
0:02:29.6]} 10. Nxe5 {[%clk 0:02:55.6]} 10... Rd8 {[%clk 0:02:22.9]} 11. Qxh5
{[%clk 0:02:41.8]} 11... Nxh5 {[%clk 0:02:23.8]} 12. Be3 {[%clk 0:02:42]} 12...
Nd7 {[%clk 0:02:20]} 13. f4 {[%clk 0:02:40.2]} 13... Nb6 {[%clk 0:02:01.5]} 14.
b3 {[%clk 0:02:36.4]} 14... Nf6 {[%clk 0:02:02.2]} 15. h3 {[%clk 0:02:32.5]}
15... h5 {[%clk 0:01:58.8]} 16. a4 {[%clk 0:02:26.9]} 16... Nbd7 {[%clk
0:01:49.8]} 17. a5 {[%clk 0:02:23.6]} 17... a6 {[%clk 0:01:46.2]} 18. Rfd1
{[%clk 0:02:21.4]} 18... Ne8 {[%clk 0:01:36.5]} 19. Na4 {[%clk 0:02:11.9]} 19...
Rb8 {[%clk 0:01:26.5]} 20. Nxd7 {[%clk 0:01:20.3]} 20... Bxd7 {[%clk 0:01:24]}
21. Nb6 {[%clk 0:01:20.8]} 21... Bf5 {[%clk 0:01:13.9]} 22. Ra2 {[%clk
0:01:13.1]} 22... Nd6 {[%clk 0:01:03.9]} 23. d5 {[%clk 0:01:12]} 23... Ne4
{[%clk 0:01:00.5]} 24. Re1 {[%clk 0:00:56.1]} 24... Nc3 {[%clk 0:00:42.2]} 25.
Rd2 {[%clk 0:00:55.3]} 25... cxd5 {[%clk 0:00:41]} 26. Nxd5 {[%clk 0:00:54.9]}
26... Nxd5 {[%clk 0:00:36.5]} 27. Rxd5 {[%clk 0:00:53.7]} 27... Bc3 {[%clk
0:00:32.6]} 28. Rxd8+ {[%clk 0:00:42.2]} 28... Rxd8 {[%clk 0:00:33.5]} 29. Bb6
{[%clk 0:00:42]} 29... Rd7 {[%clk 0:00:20.7]} 30. Re3 {[%clk 0:00:41.8]} 30...
Bd2 {[%clk 0:00:18.8]} 31. Re2 {[%clk 0:00:34.5]} 31... Bb4 {[%clk 0:00:15.6]}
32. Kf2 {[%clk 0:00:34.1]} 32... e6 {[%clk 0:00:09.6]} 33. c5 {[%clk 0:00:34.1]}
33... Bd3 {[%clk 0:00:08.8]} 34. Re3 {[%clk 0:00:31.5]} 34... Bb5 {[%clk
0:00:08.1]} 35. g4 {[%clk 0:00:25.7]} 35... Bd2 {[%clk 0:00:05.8]} 36. Re4
{[%clk 0:00:20.1]} 36... h4 {[%clk 0:00:04.4]} 37. g5 {[%clk 0:00:19.9]} 37...
Bc6 {[%clk 0:00:04.2]} 38. Rc4 {[%clk 0:00:20]} 38... Kf8 {[%clk 0:00:03.1]} 39.
Bxc6 {[%clk 0:00:18.2]} 39... bxc6 {[%clk 0:00:04]} 40. Ke2 {[%clk 0:00:18.1]}
40... Ke7 {[%clk 0:00:04.2]} 41. Re4 {[%clk 0:00:18.4]} 41... Rd5 {[%clk
0:00:02.3]} 42. b4 {[%clk 0:00:19.3]} 42... Kd7 {[%clk 0:00:02.6]} 43. Ba7
{[%clk 0:00:19.3]} 43... Kc8 {[%clk 0:00:02.1]} 44. Bb6 {[%clk 0:00:20]} 44...
Bc3 {[%clk 0:00:01.8]} 45. Kf3 {[%clk 0:00:18.5]} 45... Rd3+ {[%clk 0:00:01.4]}
46. Kg4 {[%clk 0:00:18.8]} 46... Rd4 {[%clk 0:00:01.9]} 47. Rxd4 {[%clk
0:00:18.7]} 47... Bxd4 {[%clk 0:00:02.8]} 48. Kxh4 {[%clk 0:00:19.4]} 48... Bc3
{[%clk 0:00:02.9]} 49. Kg4 {[%clk 0:00:20.3]} 49... Bxb4 {[%clk 0:00:03.5]} 50.
h4 {[%clk 0:00:20.9]} 50... Kd7 {[%clk 0:00:03.9]} 51. h5 {[%clk 0:00:21.3]}
51... gxh5+ {[%clk 0:00:04.4]} 52. Kxh5 {[%clk 0:00:22.2]} 52... Bc3 {[%clk
0:00:04.6]} 53. Kg4 {[%clk 0:00:21.9]} 53... Ke7 {[%clk 0:00:04.3]} 54. Kf3
{[%clk 0:00:22.1]} 54... Kf8 {[%clk 0:00:04.4]} 55. Ke4 {[%clk 0:00:22.1]} 55...
Kg7 {[%clk 0:00:05]} 56. f5 {[%clk 0:00:21.8]} 56... Kf8 {[%clk 0:00:03.4]} 57.
Bd8 {[%clk 0:00:21.4]} 57... Ke8 {[%clk 0:00:03.1]} 58. Bc7 {[%clk 0:00:21.2]}
58... Kd7 {[%clk 0:00:02.8]} 59. Bb6 {[%clk 0:00:20.2]} 59... Ke7 {[%clk
0:00:02.9]} 60. Bc7 {[%clk 0:00:19.8]} 60... exf5+ {[%clk 0:00:01.7]} 61. Kxf5
{[%clk 0:00:19.8]} 61... Bb4 {[%clk 0:00:01.8]} 62. Bb6 {[%clk 0:00:20.1]} 62...
Bd2 {[%clk 0:00:01.7]} 63. Bc7 {[%clk 0:00:19.6]} 63... Kd7 {[%clk 0:00:01.8]}
64. Bb6 {[%clk 0:00:19.5]} 64... Ke8 {[%clk 0:00:02.3]} 65. Bc7 {[%clk
0:00:19.6]} 65... Bb4 {[%clk 0:00:01.9]} 66. Bb6 {[%clk 0:00:20]} 66... Ke7
{[%clk 0:00:02.6]} 67. Ke5 {[%clk 0:00:18.9]} 67... Bd2 {[%clk 0:00:03.2]} 68.
Kf5 {[%clk 0:00:19.3]} 68... Be3 {[%clk 0:00:03.9]} 69. Ba7 {[%clk 0:00:18.1]}
69... Kf8 {[%clk 0:00:03.2]} 70. Bb6 {[%clk 0:00:18.2]} 70... Bd4 {[%clk
0:00:03.5]} 71. Ba7 {[%clk 0:00:17]} 71... Kg7 {[%clk 0:00:03.7]} 72. Bb6 {[%clk
0:00:17.3]} 72... Kf8 {[%clk 0:00:03.3]} 73. Ba7 {[%clk 0:00:17.3]} 73... Ke8
{[%clk 0:00:03.8]} 74. Bb6 {[%clk 0:00:17.6]} 74... Kd7 {[%clk 0:00:04]} 75. Ke4
{[%clk 0:00:17.6]} 75... Bg7 {[%clk 0:00:03.7]} 76. Kf5 {[%clk 0:00:18.5]} 76...
Ke7 {[%clk 0:00:03.7]} 77. Bc7 {[%clk 0:00:18]} 77... Bb2 {[%clk 0:00:03.6]} 78.
Bb6 {[%clk 0:00:16.7]} 78... Bd4 {[%clk 0:00:02.9]} 79. Ke4 {[%clk 0:00:17]}
79... Bc3 {[%clk 0:00:02.9]} 80. Kf5 {[%clk 0:00:17.9]} 80... Bd2 {[%clk
0:00:03.1]} 81. Bc7 {[%clk 0:00:17.8]} 81... Bb4 {[%clk 0:00:02.7]} 82. Bb6
{[%clk 0:00:18]} 82... Ba3 {[%clk 0:00:03.2]} 83. Ke5 {[%clk 0:00:18.1]} 83...
Kd7 {[%clk 0:00:03.3]} 84. Kf6 {[%clk 0:00:17.6]} 84... Bc1 {[%clk 0:00:03.9]}
85. Kf5 {[%clk 0:00:16.6]} 85... Ke7 {[%clk 0:00:03.8]} 86. Bc7 {[%clk
0:00:15.9]} 86... Kf8 {[%clk 0:00:03.4]} 87. Bd6+ {[%clk 0:00:15.7]} 87... Ke8
{[%clk 0:00:03.2]} 88. Bc7 {[%clk 0:00:16.6]} 88... Bd2 {[%clk 0:00:03.1]} 89.
Bb6 {[%clk 0:00:16.9]} 89... Kf8 {[%clk 0:00:03.2]} 90. Kf6 {[%clk 0:00:17.3]}
90... Bc3+ {[%clk 0:00:03.1]} 91. Kf5 {[%clk 0:00:17.8]} 91... Kg7 {[%clk
0:00:03.5]} 92. Bc7 {[%clk 0:00:17.8]} 92... Kg8 {[%clk 0:00:02.2]} 93. Bd8
{[%clk 0:00:16.4]} 93... Kf8 {[%clk 0:00:02.3]} 94. Bb6 {[%clk 0:00:16.4]} 94...
Ke8 {[%clk 0:00:02.7]} 95. Bc7 {[%clk 0:00:16.4]} 95... Kd7 {[%clk 0:00:02.8]}
96. Bb6 {[%clk 0:00:16.9]} 96... Bd4 {[%clk 0:00:02.7]} 97. Ke4 {[%clk
0:00:17.3]} 97... Bf2 {[%clk 0:00:02.5]} 98. Kf5 {[%clk 0:00:18.2]} 98... Ke7
{[%clk 0:00:02.4]} 99. Ke5 {[%clk 0:00:18.2]} 99... Bg1 {[%clk 0:00:01.6]} 100.
Kf5 {[%clk 0:00:19.1]} 100... Be3 {[%clk 0:00:01.9]} 101. Ba7 {[%clk 0:00:19]}
101... Bc1 {[%clk 0:00:02.3]} 102. Bb6 {[%clk 0:00:19.3]} 102... Bb2 {[%clk
0:00:02.5]} 103. Bc7 {[%clk 0:00:19.3]} 103... Bd4 {[%clk 0:00:02.6]} 104. Bb6
{[%clk 0:00:19.4]} 104... Kd7 {[%clk 0:00:02.8]} 1/2-1/2

[Event "Early-Titled-Tuesday-Blitz-January-30-2024"]
[Site "Chess.com"]
[Date "2024.01.30"]
[Round "9"]
[White "BogdanDeac"]
[Black "bancsoo"]
[Result "1-0"]
[WhiteElo "3076"]
[BlackElo "2805"]
[TimeControl "180+1"]
[EndTime "9:51:23 PST"]
[Termination "BogdanDeac won by resignation"]

1. e4 {[%clk 0:03:00.9]} 1... e5 {[%clk 0:03:00.1]} 2. Nf3 {[%clk 0:02:54.4]}
2... d6 {[%clk 0:03:00.6]} 3. Bc4 {[%clk 0:02:53.2]} 3... Nf6 {[%clk 0:03:00.3]}
4. d3 {[%clk 0:02:53.5]} 4... Be7 {[%clk 0:03:00.3]} 5. O-O {[%clk 0:02:52.6]}
5... O-O {[%clk 0:03:00.8]} 6. Re1 {[%clk 0:02:53.2]} 6... c5 {[%clk 0:03:00.8]}
7. a4 {[%clk 0:02:50.7]} 7... Nc6 {[%clk 0:03:01]} 8. Nc3 {[%clk 0:02:47.9]}
8... Be6 {[%clk 0:03:01]} 9. Bg5 {[%clk 0:02:45.9]} 9... Qd7 {[%clk 0:02:58.6]}
10. Bxf6 {[%clk 0:02:43.1]} 10... Bxf6 {[%clk 0:02:58.6]} 11. Nd5 {[%clk
0:02:43.7]} 11... Bd8 {[%clk 0:02:59.2]} 12. c3 {[%clk 0:02:41.4]} 12... Ne7
{[%clk 0:02:48.3]} 13. Ne3 {[%clk 0:02:35.6]} 13... Rc8 {[%clk 0:02:39.2]} 14.
Ng5 {[%clk 0:02:28.4]} 14... Bxc4 {[%clk 0:02:28.4]} 15. dxc4 {[%clk 0:02:27.2]}
15... h6 {[%clk 0:02:04.4]} 16. Nf3 {[%clk 0:02:26.6]} 16... Ng6 {[%clk
0:02:04.6]} 17. Nf5 {[%clk 0:02:14.5]} 17... Bc7 {[%clk 0:02:04.1]} 18. g3
{[%clk 0:02:14.5]} 18... Rce8 {[%clk 0:01:53.9]} 19. Qd3 {[%clk 0:02:08.2]}
19... Qe6 {[%clk 0:01:48.1]} 20. Rad1 {[%clk 0:02:06.8]} 20... Ne7 {[%clk
0:01:46.2]} 21. N3h4 {[%clk 0:02:01.8]} 21... Nc6 {[%clk 0:01:31]} 22. Ng2
{[%clk 0:01:55]} 22... Kh7 {[%clk 0:01:27.1]} 23. Nfe3 {[%clk 0:01:10.2]} 23...
g6 {[%clk 0:01:17.6]} 24. Nd5 {[%clk 0:00:55.5]} 24... Bd8 {[%clk 0:01:17.6]}
25. Rd2 {[%clk 0:00:43.2]} 25... Bg5 {[%clk 0:01:14.7]} 26. Rdd1 {[%clk
0:00:38.1]} 26... Bd8 {[%clk 0:01:14.4]} 27. Qe2 {[%clk 0:00:37.5]} 27... Qd7
{[%clk 0:01:08.5]} 28. h4 {[%clk 0:00:34.6]} 28... h5 {[%clk 0:01:04.5]} 29.
Nge3 {[%clk 0:00:31.5]} 29... Na5 {[%clk 0:01:01.3]} 30. Qc2 {[%clk 0:00:27.2]}
30... Nc6 {[%clk 0:00:59.6]} 31. Rd2 {[%clk 0:00:24.9]} 31... a6 {[%clk
0:00:51.3]} 32. Qd1 {[%clk 0:00:24]} 32... Qe6 {[%clk 0:00:50.8]} 33. Kg2 {[%clk
0:00:23.5]} 33... Kg7 {[%clk 0:00:45.4]} 34. Rd3 {[%clk 0:00:23.4]} 34... Kh7
{[%clk 0:00:45.8]} 35. Re2 {[%clk 0:00:23]} 35... Na5 {[%clk 0:00:42.7]} 36.
Red2 {[%clk 0:00:21.7]} 36... Nc6 {[%clk 0:00:41.9]} 37. Qe2 {[%clk 0:00:17.6]}
37... Kg7 {[%clk 0:00:39.2]} 38. Kf1 {[%clk 0:00:17.5]} 38... Kh7 {[%clk
0:00:39.5]} 39. Ke1 {[%clk 0:00:17.7]} 39... Kg7 {[%clk 0:00:39.8]} 40. Kd1
{[%clk 0:00:17.8]} 40... Kh7 {[%clk 0:00:40.1]} 41. Kc2 {[%clk 0:00:17.7]} 41...
Na5 {[%clk 0:00:39.1]} 42. Kb1 {[%clk 0:00:13.9]} 42... Qd7 {[%clk 0:00:38.2]}
43. Qd1 {[%clk 0:00:13.4]} 43... Qe6 {[%clk 0:00:38.3]} 44. b3 {[%clk
0:00:09.7]} 44... Nc6 {[%clk 0:00:37.9]} 45. Kb2 {[%clk 0:00:09.3]} 45... Kg7
{[%clk 0:00:36.4]} 46. Nc2 {[%clk 0:00:06.5]} 46... Kh7 {[%clk 0:00:35.5]} 47.
Nde3 {[%clk 0:00:06]} 47... Bc7 {[%clk 0:00:33.8]} 48. Nd5 {[%clk 0:00:05.2]}
48... Bd8 {[%clk 0:00:34.1]} 49. Nde3 {[%clk 0:00:05.2]} 49... Bc7 {[%clk
0:00:34.3]} 50. Qe2 {[%clk 0:00:04.7]} 50... Kg7 {[%clk 0:00:33.9]} 51. Rd1
{[%clk 0:00:04.5]} 51... Kh7 {[%clk 0:00:33.2]} 52. R3d2 {[%clk 0:00:04.9]}
52... Kg7 {[%clk 0:00:33.3]} 53. Qd3 {[%clk 0:00:05.2]} 53... Kh7 {[%clk
0:00:32.7]} 54. Qd5 {[%clk 0:00:05.3]} 54... Rd8 {[%clk 0:00:30.8]} 55. Qd3
{[%clk 0:00:04.9]} 55... Rde8 {[%clk 0:00:30.8]} 56. Nd5 {[%clk 0:00:05]} 56...
Bd8 {[%clk 0:00:31.2]} 57. Qe2 {[%clk 0:00:05]} 57... Kg7 {[%clk 0:00:31.5]} 58.
Rg1 {[%clk 0:00:05]} 58... Rh8 {[%clk 0:00:22.9]} 59. Nce3 {[%clk 0:00:05.1]}
59... Rh7 {[%clk 0:00:17.3]} 60. f3 {[%clk 0:00:05.1]} 60... Rhh8 {[%clk
0:00:17.6]} 61. Rgd1 {[%clk 0:00:05.2]} 61... Rhf8 {[%clk 0:00:16.5]} 62. Qf2
{[%clk 0:00:05.3]} 62... Rh8 {[%clk 0:00:16.9]} 63. Qg2 {[%clk 0:00:05.3]} 63...
Na5 {[%clk 0:00:16.3]} 64. Nc2 {[%clk 0:00:05.3]} 64... Nc6 {[%clk 0:00:16.6]}
65. Nde3 {[%clk 0:00:05]} 65... Be7 {[%clk 0:00:15.3]} 66. Qf1 {[%clk
0:00:05.6]} 66... Rb8 {[%clk 0:00:14.3]} 67. Nd5 {[%clk 0:00:05.6]} 67... Bd8
{[%clk 0:00:14.7]} 68. Nce3 {[%clk 0:00:05.7]} 68... Na5 {[%clk 0:00:14.9]} 69.
Rf2 {[%clk 0:00:05.3]} 69... Qe8 {[%clk 0:00:15]} 70. b4 {[%clk 0:00:04.3]}
70... cxb4 {[%clk 0:00:14]} 71. cxb4 {[%clk 0:00:04.6]} 71... Nc6 {[%clk
0:00:14.5]} 72. b5 {[%clk 0:00:04.9]} 72... Nd4 {[%clk 0:00:14.8]} 73. Nc2
{[%clk 0:00:04.8]} 73... Ne6 {[%clk 0:00:14.5]} 74. Ncb4 {[%clk 0:00:04.6]}
74... Nc5 {[%clk 0:00:14.6]} 75. Ra1 {[%clk 0:00:04.4]} 75... Ba5 {[%clk
0:00:14.4]} 76. Nd3 {[%clk 0:00:04.7]} 76... Ne6 {[%clk 0:00:13.9]} 77. f4
{[%clk 0:00:03.8]} 77... exf4 {[%clk 0:00:12.3]} 78. gxf4 {[%clk 0:00:04]} 78...
axb5 {[%clk 0:00:09]} 79. axb5 {[%clk 0:00:03.9]} 79... Bd8 {[%clk 0:00:09.1]}
80. f5 {[%clk 0:00:04.3]} 80... Nc5 {[%clk 0:00:09.6]} 81. Nxc5 {[%clk
0:00:03.9]} 81... Qe5+ {[%clk 0:00:10.3]} 82. Kb3 {[%clk 0:00:03.6]} 82... dxc5
{[%clk 0:00:11]} 83. fxg6 {[%clk 0:00:04.3]} 83... fxg6 {[%clk 0:00:06.8]} 84.
Rf7+ {[%clk 0:00:03.8]} 84... Kh6 {[%clk 0:00:07.5]} 85. Qc1+ {[%clk 0:00:03.4]}
85... g5 {[%clk 0:00:08]} 86. Qf1 {[%clk 0:00:03.8]} 86... Rg8 {[%clk
0:00:07.9]} 87. Rf5 {[%clk 0:00:04]} 87... Qxe4 {[%clk 0:00:07.6]} 88. Re1
{[%clk 0:00:04.5]} 88... Qd4 {[%clk 0:00:05.1]} 89. Re6+ {[%clk 0:00:04.5]}
89... Rg6 {[%clk 0:00:05.9]} 90. hxg5+ {[%clk 0:00:04.8]} 90... Bxg5 {[%clk
0:00:06.1]} 91. Rxg6+ {[%clk 0:00:04.6]} 91... Kxg6 {[%clk 0:00:06.6]} 92. Rf3
{[%clk 0:00:05.2]} 92... Re8 {[%clk 0:00:05.5]} 93. Qb1+ {[%clk 0:00:05]} 93...
Qe4 {[%clk 0:00:05.3]} 94. Qf1 {[%clk 0:00:05.2]} 94... h4 {[%clk 0:00:04.8]}
95. Rf2 {[%clk 0:00:04.6]} 95... Qd4 {[%clk 0:00:03.7]} 96. Rf3 {[%clk
0:00:04.6]} 96... Qe4 {[%clk 0:00:04.2]} 97. Rf2 {[%clk 0:00:03.9]} 97... Qg4
{[%clk 0:00:04.8]} 98. Rf6+ {[%clk 0:00:03.5]} 98... Bxf6 {[%clk 0:00:04.4]} 99.
Qxf6+ {[%clk 0:00:03.2]} 99... Kh5 {[%clk 0:00:05.1]} 100. Qf7+ {[%clk
0:00:03.7]} 100... Qg6 {[%clk 0:00:05.3]} 101. Nf4+ {[%clk 0:00:04.1]} 101...
Kg4 {[%clk 0:00:04.7]} 102. Qxg6+ {[%clk 0:00:05]} 102... Kxf4 {[%clk
0:00:05.4]} 103. Qxe8 {[%clk 0:00:05.9]} 1-0

[Event "Early-Titled-Tuesday-Blitz-January-30-2024"]
[Site "Chess.com"]
[Date "2024.01.30"]
[Round "10"]
[White "RaulPerezGuerra"]
[Black "KorolDimitriy75"]
[Result "0-1"]
[WhiteElo "2488"]
[BlackElo "2372"]
[TimeControl "180+1"]
[EndTime "9:56:43 PST"]
[Termination "KorolDimitriy75 won by resignation"]

1. b3 {[%clk 0:03:00.9]} 1... c5 {[%clk 0:03:00.1]} 2. Bb2 {[%clk 0:03:01.4]}
2... Nc6 {[%clk 0:03:00.7]} 3. g3 {[%clk 0:03:01.8]} 3... d6 {[%clk 0:03:01.3]}
4. Bg2 {[%clk 0:03:01.4]} 4... e5 {[%clk 0:03:01.9]} 5. d3 {[%clk 0:03:01.8]}
5... g6 {[%clk 0:03:02.3]} 6. Nd2 {[%clk 0:03:02.6]} 6... Bg7 {[%clk 0:03:02.9]}
7. e3 {[%clk 0:03:01.6]} 7... Nge7 {[%clk 0:03:03.3]} 8. Ne2 {[%clk 0:03:02.5]}
8... O-O {[%clk 0:03:03]} 9. O-O {[%clk 0:03:03.1]} 9... Be6 {[%clk 0:02:52.4]}
10. c4 {[%clk 0:03:02.2]} 10... Qd7 {[%clk 0:02:51.1]} 11. Ne4 {[%clk
0:03:01.5]} 11... h6 {[%clk 0:02:50.1]} 12. Qd2 {[%clk 0:02:54]} 12... f5 {[%clk
0:02:31.5]} 13. N4c3 {[%clk 0:02:53.6]} 13... d5 {[%clk 0:02:22.3]} 14. cxd5
{[%clk 0:02:53.3]} 14... Nxd5 {[%clk 0:02:23.2]} 15. Nxd5 {[%clk 0:02:53.8]}
15... Bxd5 {[%clk 0:02:23.8]} 16. Nc3 {[%clk 0:02:54]} 16... Bxg2 {[%clk
0:02:21.8]} 17. Kxg2 {[%clk 0:02:54.9]} 17... Rfd8 {[%clk 0:02:07.2]} 18. Rfd1
{[%clk 0:02:53.9]} 18... e4 {[%clk 0:01:46.4]} 19. dxe4 {[%clk 0:02:52.9]} 19...
Qxd2 {[%clk 0:01:44.5]} 20. Rxd2 {[%clk 0:02:50.4]} 20... Rxd2 {[%clk
0:01:45.4]} 0-1

[Event "Early-Titled-Tuesday-Blitz-January-30-2024"]
[Site "Chess.com"]
[Date "2024.01.30"]
[Round "10"]
[White "Zhigalko_Sergei"]
[Black "Practical-Play"]
[Result "1-0"]
[WhiteElo "2921"]
[BlackElo "2601"]
[TimeControl "180+1"]
[EndTime "9:57:23 PST"]
[Termination "Zhigalko_Sergei won by resignation"]

1. e4 {[%clk 0:03:00.9]} 1... d5 {[%clk 0:02:59.4]} 2. exd5 {[%clk 0:03:00.9]}
2... Nf6 {[%clk 0:02:59.2]} 3. d4 {[%clk 0:03:01]} 3... Bg4 {[%clk 0:02:58.1]}
4. Bb5+ {[%clk 0:03:00.9]} 4... Nbd7 {[%clk 0:02:55.7]} 5. Be2 {[%clk
0:03:00.8]} 5... Bxe2 {[%clk 0:02:51.8]} 6. Qxe2 {[%clk 0:03:01.7]} 6... Nxd5
{[%clk 0:02:50.4]} 7. c4 {[%clk 0:03:02.1]} 7... N5f6 {[%clk 0:02:49.6]} 8. Nf3
{[%clk 0:03:01.6]} 8... e6 {[%clk 0:02:49.5]} 9. O-O {[%clk 0:03:02]} 9... c6
{[%clk 0:02:39.1]} 10. Nc3 {[%clk 0:02:51.3]} 10... Bd6 {[%clk 0:02:37.9]} 11.
d5 {[%clk 0:02:50.6]} 11... O-O {[%clk 0:02:34.2]} 12. dxe6 {[%clk 0:02:46]}
12... Re8 {[%clk 0:02:31.5]} 13. exf7+ {[%clk 0:02:43]} 13... Kxf7 {[%clk
0:02:32.4]} 14. Qc2 {[%clk 0:02:38]} 14... Qc7 {[%clk 0:02:28]} 15. Bg5 {[%clk
0:02:35]} 15... Bf4 {[%clk 0:02:15.5]} 16. Rad1 {[%clk 0:02:30.8]} 16... Kg8
{[%clk 0:02:06.1]} 17. Bxf6 {[%clk 0:02:12.1]} 17... Nxf6 {[%clk 0:02:05.5]} 18.
g3 {[%clk 0:02:12.7]} 18... Bd6 {[%clk 0:01:58.6]} 19. Rfe1 {[%clk 0:02:11.1]}
19... Rf8 {[%clk 0:01:57.3]} 20. Ng5 {[%clk 0:02:09.9]} 20... Qb6 {[%clk
0:01:51]} 21. Rxd6 {[%clk 0:02:07.6]} 1-0

[Event "Early-Titled-Tuesday-Blitz-January-30-2024"]
[Site "Chess.com"]
[Date "2024.01.30"]
[Round "10"]
[White "claudyna16"]
[Black "Logman74"]
[Result "1-0"]
[WhiteElo "2414"]
[BlackElo "2542"]
[TimeControl "180+1"]
[EndTime "9:57:29 PST"]
[Termination "claudyna16 won by resignation"]

1. c4 {[%clk 0:03:00.9]} 1... Nf6 {[%clk 0:02:57.1]} 2. g3 {[%clk 0:03:00.9]}
2... g6 {[%clk 0:02:57.5]} 3. Bg2 {[%clk 0:03:01.2]} 3... Bg7 {[%clk 0:02:58.1]}
4. Nc3 {[%clk 0:03:01.7]} 4... d6 {[%clk 0:02:58.4]} 5. e3 {[%clk 0:03:02.2]}
5... O-O {[%clk 0:02:59]} 6. Nge2 {[%clk 0:03:02.8]} 6... Nbd7 {[%clk
0:02:58.7]} 7. O-O {[%clk 0:03:02.8]} 7... e5 {[%clk 0:02:59]} 8. b4 {[%clk
0:03:01.2]} 8... c6 {[%clk 0:02:53.9]} 9. b5 {[%clk 0:02:59.1]} 9... Qc7 {[%clk
0:02:52.2]} 10. a4 {[%clk 0:02:51.3]} 10... a5 {[%clk 0:02:49.5]} 11. Ba3 {[%clk
0:02:50.9]} 11... c5 {[%clk 0:02:46.5]} 12. d3 {[%clk 0:02:45.1]} 12... Rb8
{[%clk 0:02:44.7]} 13. b6 {[%clk 0:02:33]} 13... Nxb6 {[%clk 0:02:43.4]} 14. Nb5
{[%clk 0:02:32.8]} 14... Qd8 {[%clk 0:02:43.5]} 15. Bb2 {[%clk 0:02:30.9]} 15...
Na8 {[%clk 0:02:31]} 16. Qd2 {[%clk 0:02:24.9]} 16... b6 {[%clk 0:02:31.2]} 17.
Na7 {[%clk 0:02:18.8]} 17... Bb7 {[%clk 0:02:17]} 18. Nc6 {[%clk 0:02:17.3]}
18... Bxc6 {[%clk 0:02:16.8]} 19. Bxc6 {[%clk 0:02:18.2]} 19... Nc7 {[%clk
0:02:17.2]} 20. Bg2 {[%clk 0:02:17.1]} 20... d5 {[%clk 0:02:17.2]} 21. Bxe5
{[%clk 0:02:11.5]} 21... dxc4 {[%clk 0:02:16.9]} 22. Rfd1 {[%clk 0:01:59.6]}
22... Qd4 {[%clk 0:02:02.9]} 23. exd4 {[%clk 0:01:58.7]} 1-0

[Event "Early-Titled-Tuesday-Blitz-January-30-2024"]
[Site "Chess.com"]
[Date "2024.01.30"]
[Round "10"]
[White "diamonds13"]
[Black "Chesstiger64"]
[Result "1-0"]
[WhiteElo "2374"]
[BlackElo "2240"]
[TimeControl "180+1"]
[EndTime "9:57:36 PST"]
[Termination "diamonds13 won by checkmate"]

1. d4 {[%clk 0:02:48.1]} 1... e6 {[%clk 0:02:59.6]} 2. c4 {[%clk 0:02:47.8]}
2... c5 {[%clk 0:02:58.7]} 3. d5 {[%clk 0:02:47.7]} 3... b5 {[%clk 0:02:59]} 4.
cxb5 {[%clk 0:02:47.7]} 4... Nf6 {[%clk 0:02:58.9]} 5. Nc3 {[%clk 0:02:47.8]}
5... a6 {[%clk 0:02:58.1]} 6. e4 {[%clk 0:02:45.8]} 6... axb5 {[%clk 0:02:55.9]}
7. Bxb5 {[%clk 0:02:45.8]} 7... Ba6 {[%clk 0:02:54.9]} 8. Bxa6 {[%clk
0:02:37.1]} 8... Nxa6 {[%clk 0:02:54.9]} 9. Bg5 {[%clk 0:02:33.3]} 9... h6
{[%clk 0:02:53.7]} 10. Bh4 {[%clk 0:02:32.8]} 10... g5 {[%clk 0:02:51.8]} 11.
Bg3 {[%clk 0:02:32.2]} 11... Bg7 {[%clk 0:02:51.7]} 12. Bd6 {[%clk 0:02:28.3]}
12... Qb6 {[%clk 0:02:42.7]} 13. e5 {[%clk 0:02:21]} 13... Nxd5 {[%clk
0:02:30.3]} 14. Nxd5 {[%clk 0:02:19.2]} 14... exd5 {[%clk 0:02:31.2]} 15. Qxd5
{[%clk 0:02:16.4]} 15... Qxb2 {[%clk 0:02:24.6]} 16. Qxa8+ {[%clk 0:02:14.6]}
16... Nb8 {[%clk 0:02:20.7]} 17. Qxb8+ {[%clk 0:02:13.6]} 17... Qxb8 {[%clk
0:02:20.6]} 18. Bxb8 {[%clk 0:02:13.7]} 18... Ke7 {[%clk 0:02:21.1]} 19. Bd6+
{[%clk 0:02:13.5]} 19... Ke6 {[%clk 0:02:21.6]} 20. f4 {[%clk 0:02:10.2]} 20...
gxf4 {[%clk 0:02:19.8]} 21. Nf3 {[%clk 0:02:10.2]} 21... Ra8 {[%clk 0:02:18.7]}
22. a4 {[%clk 0:02:08.1]} 22... c4 {[%clk 0:02:17.8]} 23. O-O {[%clk 0:02:04.8]}
23... h5 {[%clk 0:02:18]} 24. Rfc1 {[%clk 0:02:04.5]} 24... Rc8 {[%clk
0:02:16.9]} 25. a5 {[%clk 0:02:03.7]} 25... Kd5 {[%clk 0:02:17.2]} 26. a6 {[%clk
0:02:03.6]} 26... Ke4 {[%clk 0:02:17.6]} 27. a7 {[%clk 0:02:02.9]} 27... Ra8
{[%clk 0:02:17.3]} 28. Rxc4+ {[%clk 0:02:02.2]} 28... Kd3 {[%clk 0:02:17.5]} 29.
Rd4+ {[%clk 0:02:01.3]} 29... Kc2 {[%clk 0:02:17.1]} 30. Ra5 {[%clk 0:01:57.1]}
30... h4 {[%clk 0:02:17]} 31. Rc5+ {[%clk 0:01:56.8]} 31... Kb1 {[%clk
0:02:16.1]} 32. Rb4+ {[%clk 0:01:56.5]} 32... Ka1 {[%clk 0:02:16.3]} 33. Ra5#
{[%clk 0:01:57.1]} 1-0